fUST/lending_fUST_20250615
["ID","MTS","AMOUNT","RATE_DAILY","PERIOD"]
[365861353,1749965444895,-460.0,0.00022739,4]
[365861354,1749965444905,-460.0,0.00022739,4]
[365861355,1749965444914,-1814.21794218,0.00022739,4]
[365861359,1749965445150,-2064.5055936,0.00022739,4]
[365861360,1749965445511,-476.46081799,0.00021816,2]
[365861361,1749965445523,-23.53918201,0.00021816,2]
[365861362,1749965445533,-575.21722235,0.00021816,2]
[365861363,1749965445542,-516.89772163,0.00021917,4]
[365861364,1749965445551,-460.0,0.00021917,4]
[365861365,1749965445561,-460.0,0.00021917,4]
[365861366,1749965445573,-460.0,0.00021917,4]
[365861367,1749965445583,-460.0,0.00022191,4]
[365861368,1749965445592,-171.16238607,0.00022191,4]
[365861369,1749965445604,-288.83761393,0.00022191,4]
[365861370,1749965445613,-460.0,0.00022465,4]
[365861371,1749965445623,-385.52197514,0.00022465,4]
[365861372,1749965445632,-460.0,0.00022465,4]
[365861373,1749965445642,-229.86375354,0.00022466,2]
[365861374,1749965445651,-44.44646422,0.00022739,4]
[365861375,1749965445660,-460.0,0.00022739,4]
[365861376,1749965445670,-460.0,0.00022739,4]
[365861377,1749965445679,-478.74,0.00022739,4]
[365861378,1749965445689,-660.76,0.00022739,4]
[365861379,1749965445698,-1129.83398133,0.00022739,4]
[365861380,1749965445714,-1663.20601867,0.00022739,4]
[365861381,1749965445723,-899.13,0.00022739,4]
[365861382,1749965445732,-700.57,0.00022739,4]
[365861383,1749965445742,-340.04325517,0.00022739,4]
[365861384,1749965445751,-1994.39,0.00022739,4]
[365861385,1749965445761,-351.08189282,0.00022739,4]
[365861386,1749965445770,-3483.91,0.00022739,4]
[365861387,1749965445780,-460.0,0.00022739,4]
[365861388,1749965445789,-283.61316749,0.00022739,4]
[365861389,1749965445798,-320.0,0.00022739,4]
[365861390,1749965445808,-460.0,0.00022739,4]
[365861391,1749965445817,-1205.3,0.00022739,4]
[365861393,1749965445827,-1481.15,0.00022739,4]
[365861395,1749965445836,-364.85902584,0.00022739,4]
[365861396,1749965445845,-598.0,0.00022739,4]
[365861397,1749965445855,-1506.96,0.00022739,4]
[365861398,1749965445864,-460.0,0.00022739,4]
[365861399,1749965445873,-788.51,0.00022739,4]
[365861400,1749965445882,-460.0,0.00022739,4]
[365861401,1749965445892,-460.0,0.00022739,4]
[365861402,1749965445901,-460.0,0.00022739,4]
[365861403,1749965445910,-460.0,0.00022739,4]
[365861404,1749965445920,-460.0,0.00022739,4]
[365861405,1749965445929,-460.0,0.00022739,4]
[365861406,1749965445938,-460.0,0.00022739,4]
[365861407,1749965445948,-320.0,0.00022739,4]
[365861408,1749965445957,-584.31,0.00022739,4]
[365861409,1749965445967,-460.0,0.00022739,4]
[365861410,1749965445976,-460.0,0.00022739,4]
[365861411,1749965445986,-474.67,0.00022739,4]
[365861412,1749965445995,-460.0,0.00022739,4]
[365861413,1749965446005,-481.67,0.00022739,4]
[365861414,1749965446015,-212.407922,0.00022739,7]
[365861415,1749965446024,-523.01,0.00022739,4]
[365861416,1749965446034,-478.75,0.00022739,4]
[365861417,1749965446043,-212.407922,0.00022739,7]
[365861418,1749965446053,-460.0,0.00022739,4]
[365861419,1749965446062,-151.0,0.00022739,7]
[365861421,1749965446072,-151.0,0.00022739,7]
[365861423,1749965446081,-1041.44,0.00022739,4]
[365861425,1749965446091,-460.0,0.00022739,4]
[365861427,1749965446100,-460.0,0.00022739,4]
[365861429,1749965446109,-460.0,0.00022739,4]
[365861431,1749965446119,-460.0,0.00022739,4]
[365861433,1749965446128,-460.0,0.00022739,4]
[365861435,1749965446137,-1646.48,0.00022739,4]
[365861437,1749965446146,-330.53136405,0.00022739,4]
[365861439,1749965446156,-710.68,0.00022739,4]
[365861440,1749965446164,-1919.93,0.00022739,4]
[365861441,1749965446173,-460.0,0.00022739,4]
[365861443,1749965446183,-2386.94,0.00022739,4]
[365861444,1749965446192,-460.0,0.00022739,4]
[365861446,1749965446201,-1492.07,0.00022739,4]
[365861447,1749965446210,-304.56996525,0.00022739,4]
[365861448,1749965446220,-460.0,0.00022739,4]
[365861449,1749965446229,-460.0,0.00022739,4]
[365861450,1749965446239,-460.0,0.00022739,4]
[365861451,1749965446248,-460.0,0.00022739,4]
[365861452,1749965446257,-518.86142643,0.00022739,4]
[365861453,1749965446267,-2543.19,0.00022739,4]
[365861454,1749965446276,-340.0,0.00022739,4]
[365861455,1749965446286,-845.25843836,0.00022739,7]
[365861456,1749965446295,-348.23200574,0.00022739,4]
[365861457,1749965446305,-460.0,0.00022739,4]
[365861458,1749965446314,-620.25,0.00022739,4]
[365861459,1749965446323,-302.15082175,0.00022739,4]
[365861460,1749965446333,-565.65,0.00022739,4]
[365861461,1749965446342,-460.0,0.00022739,4]
[365861462,1749965446351,-1706.09,0.00022739,4]
[365861463,1749965446360,-460.0,0.00022739,4]
[365861464,1749965446370,-607.79,0.00022739,4]
[365861465,1749965446380,-168.0,0.00022745,2]
[365861466,1749965446389,-757.01,0.00022778,4]
[365861467,1749965446398,-420.0,0.00022842,2]
[365861468,1749965446407,-1693.2998215,0.00022866,8]
[365861469,1749965446416,-757.01,0.00022878,4]
[365861470,1749965446425,-151.0,0.00022882,7]
[365861471,1749965446435,-151.0,0.000229,8]
[365861472,1749965446444,-333.88542468,0.000229,2]
[365861473,1749965446453,-153.308803,0.0002293,7]
[365861474,1749965446462,-153.308803,0.0002293,7]
[365861475,1749965446471,-151.0,0.00022931,7]
[365861476,1749965446481,-1605.073934,0.00022931,3]
[365861477,1749965446490,-4480.9320235,0.00022965,2]
[365861478,1749965446499,-501.82273507,0.00022973,2]
[365861479,1749965446716,-500.0,0.00022973,2]
[365861480,1749965446727,-500.0,0.00022973,2]
[365861481,1749965446736,-500.0,0.00022973,2]
[365861482,1749965446745,-500.0,0.00022973,2]
[365861483,1749965446754,-500.0,0.00022973,2]
[365861484,1749965446763,-502.02931313,0.00022973,2]
[365861485,1749965446772,-252.66161971,0.00022973,2]
[365861486,1749965446783,-500.0,0.00022973,2]
[365861487,1749965446792,-380.68902381,0.00022973,2]
[365861488,1749965446802,-500.0,0.00022973,2]
[365861489,1749965446811,-501.64615102,0.00022973,2]
[365861490,1749965446820,-500.9324502,0.00022973,2]
[365861491,1749965446830,-423.89848147,0.00022973,2]
[365861492,1749965446839,-501.60488623,0.00022973,2]
[365861493,1749965446848,-500.0,0.00022973,2]
[365861494,1749965446858,-500.0,0.00022973,2]
[365861495,1749965446867,-324.68665771,0.00022973,2]
[365861496,1749965446877,-503.34287607,0.00022973,2]
[365861497,1749965446886,-500.0,0.00022973,2]
[365861498,1749965446895,-500.0,0.00022973,2]
[365861499,1749965446905,-500.0,0.00022973,2]
[365861500,1749965446914,-500.0,0.00022973,2]
[365861501,1749965446923,-519.043125,0.00022973,2]
[365861502,1749965446933,-500.0,0.00022973,2]
[365861503,1749965446942,-500.0,0.00022973,2]
[365861504,1749965446952,-500.0,0.00022973,2]
[365861505,1749965446961,-500.0,0.00022973,2]
[365861506,1749965446971,-500.0,0.00022973,2]
[365861507,1749965446980,-600.0,0.00022973,2]
[365861508,1749965446989,-500.0,0.00022973,2]
[365861509,1749965446998,-500.0,0.00022973,2]
[365861510,1749965447008,-500.0,0.00022973,2]
[365861511,1749965447017,-757.01,0.00022978,6]
[365861512,1749965447026,-5600.94206452,0.0002299,2]
[365861513,1749965447036,-5000.0,0.00022996,2]
[365861514,1749965447046,-151.0,0.00022996,7]
[365861515,1749965447055,-151.0,0.00023,7]
[365861516,1749965447064,-151.0,0.00023,7]
[365861517,1749965447074,-127618.16708413,0.00023,2]
[365861518,1749965447083,-151.0,0.00023,7]
[365861519,1749965447092,-154.216368,0.00023,7]
[365861520,1749965447101,-151.0,0.00023,7]
[365861521,1749965447111,-500.0,0.00023,2]
[365861522,1749965447120,-5989.46906902,0.00023,2]
[365861523,1749965447129,-827.1631375,0.00023,2]
[365861524,1749965447138,-6022.6412642,0.00023,3]
[365861525,1749965447147,-45500.75441524,0.00023,20]
[365861526,1749965447157,-151.0,0.00023,7]
[365861527,1749965447166,-151.0,0.00023,7]
[365861528,1749965447176,-151.0,0.00023,7]
[365861529,1749965447185,-153.308803,0.00023,7]
[365861530,1749965447195,-153.308803,0.00023,7]
[365861531,1749965447204,-1693.2998215,0.00023003,8]
[365861532,1749965447213,-151.0,0.00023004,7]
[365861533,1749965447222,-151.0,0.00023004,7]
[365861534,1749965447232,-151.0,0.00023004,7]
[365861535,1749965447241,-3819.55,0.00023012,4]
[365861536,1749965447251,-1587.03,0.00023012,4]
[365861537,1749965447260,-460.0,0.00023012,4]
[365861538,1749965447270,-460.0,0.00023012,4]
[365861539,1749965447279,-151.0,0.00023013,7]
[365861540,1749965447288,-151.0,0.00023013,7]
[365861541,1749965447298,-151.0,0.00023013,7]
[365861542,1749965447307,-158.200928,0.00023013,7]
[365861543,1749965447316,-158.200928,0.00023013,7]
[365861544,1749965447325,-151.0,0.00023013,7]
[365861545,1749965447334,-240.0,0.00023013,4]
[365861546,1749965447343,-151.0,0.00023013,7]
[365861547,1749965447353,-460.0,0.00023013,4]
[365861548,1749965447362,-430.0,0.00023013,4]
[365861549,1749965447371,-151.0,0.00023013,7]
[365861550,1749965447381,-151.0,0.00023013,7]
[365861551,1749965447390,-186.724186,0.00023013,2]
[365861552,1749965447399,-151.0,0.00023013,7]
[365861553,1749965447408,-186.724186,0.00023013,2]
[365861554,1749965447418,-460.0,0.00023013,4]
[365861555,1749965447427,-460.0,0.00023013,4]
[365861556,1749965447436,-290.0,0.00023013,4]
[365861557,1749965447445,-279.39463629,0.00023013,4]
[365861558,1749965447455,-460.0,0.00023013,4]
[365861559,1749965447464,-296.97087463,0.00023013,4]
[365861560,1749965447473,-613.75,0.00023013,4]
[365861561,1749965447484,-582.87,0.00023013,4]
[365861562,1749965447493,-360.0,0.00023013,4]
[365861563,1749965447502,-460.0,0.00023013,4]
[365861564,1749965447511,-826.12,0.00023013,4]
[365861565,1749965447521,-460.0,0.00023013,4]
[365861566,1749965447531,-679.06,0.00023013,4]
[365861567,1749965447539,-460.0,0.00023013,2]
[365861568,1749965447548,-460.0,0.00023013,4]
[365861569,1749965447558,-460.0,0.00023013,4]
[365861570,1749965447571,-630.61,0.00023013,4]
[365861571,1749965447580,-547.35,0.00023013,4]
[365861572,1749965447589,-460.0,0.00023013,4]
[365861573,1749965447598,-460.0,0.00023013,4]
[365861574,1749965447607,-380.0,0.00023013,4]
[365861575,1749965447617,-3923.17,0.00023013,4]
[365861576,1749965447626,-460.0,0.00023013,4]
[365861577,1749965447635,-290.0,0.00023013,4]
[365861578,1749965447644,-478.74,0.00023013,4]
[365861579,1749965447655,-660.76,0.00023013,4]
[365861581,1749965447664,-2793.04,0.00023013,4]
[365861583,1749965447673,-899.13,0.00023013,4]
[365861585,1749965447683,-700.57,0.00023013,4]
[365861587,1749965447692,-1994.39,0.00023013,4]
[365861589,1749965447701,-3483.91,0.00023013,4]
[365861590,1749965447710,-579.16,0.00023013,4]
[365861592,1749965447719,-1205.3,0.00023013,4]
[365861593,1749965447729,-1481.15,0.00023013,4]
[365861594,1749965447739,-598.0,0.00023013,4]
[365861595,1749965447748,-1506.96,0.00023013,4]
[365861596,1749965447757,-460.0,0.00023013,4]
[365861597,1749965447766,-788.51,0.00023013,4]
[365861598,1749965447775,-460.0,0.00023013,4]
[365861599,1749965447785,-460.0,0.00023013,4]
[365861600,1749965447795,-460.0,0.00023013,4]
[365861601,1749965447805,-430.0,0.00023013,4]
[365861602,1749965447907,-460.0,0.00023013,4]
[365861603,1749965447934,-460.0,0.00023013,4]
[365861604,1749965447945,-584.31,0.00023013,4]
[365861605,1749965447954,-460.0,0.00023013,4]
[365861606,1749965447963,-460.0,0.00023013,4]
[365861607,1749965447973,-474.67,0.00023013,4]
[365861608,1749965447982,-460.0,0.00023013,4]
[365861609,1749965447992,-481.67,0.00023013,4]
[365861610,1749965448002,-212.407922,0.00023013,7]
[365861611,1749965448011,-523.01,0.00023013,4]
[365861612,1749965448020,-478.75,0.00023013,4]
[365861613,1749965448030,-212.407922,0.00023013,7]
[365861614,1749965448040,-466.04675364,0.00023013,4]
[365861615,1749965448049,-1041.44,0.00023013,4]
[365861616,1749965448058,-460.0,0.00023013,4]
[365861617,1749965448068,-460.0,0.00023013,4]
[365861618,1749965448078,-460.0,0.00023013,4]
[365861619,1749965448087,-460.0,0.00023013,4]
[365861620,1749965448096,-460.0,0.00023013,4]
[365861621,1749965448108,-1646.48,0.00023013,4]
[365861622,1749965448118,-710.68,0.00023013,4]
[365861623,1749965448127,-460.0,0.00023013,4]
[365861624,1749965448136,-1919.93,0.00023013,4]
[365861625,1749965448146,-2386.94,0.00023013,4]
[365861626,1749965448155,-1492.07,0.00023013,4]
[365861627,1749965448165,-460.0,0.00023013,4]
[365861628,1749965448174,-460.0,0.00023013,4]
[365861629,1749965448183,-2543.19,0.00023013,4]
[365861630,1749965448193,-460.0,0.00023013,4]
[365861631,1749965448202,-620.25,0.00023013,4]
[365861632,1749965448212,-565.65,0.00023013,4]
[365861633,1749965448221,-460.0,0.00023013,4]
[365861634,1749965448230,-1706.09,0.00023013,4]
[365861635,1749965448240,-460.0,0.00023013,4]
[365861636,1749965448249,-500.0,0.00023017,2]
[365861637,1749965448259,-500.0,0.00023024,2]
[365861638,1749965448268,-604.606277,0.0002304,2]
[365861639,1749965448277,-151.0,0.00023073,7]
[365861640,1749965448288,-151.0,0.00023073,7]
[365861641,1749965448297,-500.0,0.00023077,2]
[365861642,1749965448306,-757.01,0.00023078,3]
[365861643,1749965448315,-500.0,0.00023096,2]
[365861644,1749965448325,-151.0,0.000231,7]
[365861645,1749965448334,-151.0,0.000231,7]
[365861646,1749965448344,-151.0,0.00023104,7]
[365861647,1749965448353,-500.0,0.00023119,2]
[365861648,1749965448363,-500.0,0.00023138,2]
[365861649,1749965448372,-197.5847232,0.00023141,2]
[365861650,1749965448381,-151.0,0.00023141,7]
[365861651,1749965448391,-1693.2998215,0.00023141,8]
[365861652,1749965448400,-160.0,0.00023153,2]
[365861653,1749965448410,-500.0,0.00023156,2]
[365861654,1749965448419,-500.0,0.00023158,2]
[365861655,1749965448429,-757.01,0.00023178,2]
[365861656,1749965448438,-757.01,0.00023278,5]
[365861657,1749965448448,-500.0,0.00023279,2]
[365861658,1749965448457,-1693.2998215,0.00023279,8]
[365861659,1749965448466,-500.0,0.0002328,2]
[365861660,1749965448476,-500.0,0.00023281,2]
[365861661,1749965448486,-3819.55,0.00023286,4]
[365861662,1749965448496,-1587.03,0.00023286,4]
[365861663,1749965448506,-460.0,0.00023286,4]
[365861664,1749965448515,-460.0,0.00023286,4]
[365861665,1749965448525,-153.308803,0.00023286,7]
[365861666,1749965448535,-153.308803,0.00023286,7]
[365861667,1749965448545,-151.0,0.00023287,7]
[365861668,1749965448555,-151.0,0.00023287,7]
[365861669,1749965448565,-154.858186,0.00023287,7]
[365861670,1749965448578,-151.0,0.00023287,7]
[365861671,1749965448587,-151.0,0.00023287,7]
[365861672,1749965448596,-151.0,0.00023287,7]
[365861673,1749965448607,-180.541871,0.00023287,7]
[365861674,1749965448617,-460.0,0.00023287,4]
[365861675,1749965448627,-151.0,0.00023287,7]
[365861676,1749965448637,-151.0,0.00023287,7]
[365861677,1749965448650,-186.724186,0.00023287,2]
[365861678,1749965448660,-151.0,0.00023287,7]
[365861679,1749965448670,-186.724186,0.00023287,2]
[365861680,1749965448679,-460.0,0.00023287,4]
[365861681,1749965448688,-485.90855456,0.00023287,4]
[365861682,1749965448698,-613.75,0.00023287,4]
[365861683,1749965448707,-582.87,0.00023287,4]
[365861684,1749965448717,-460.0,0.00023287,4]
[365861685,1749965448727,-826.12,0.00023287,4]
[365861686,1749965448736,-460.0,0.00023287,4]
[365861687,1749965448745,-679.06,0.00023287,4]
[365861688,1749965448755,-460.0,0.00023287,2]
[365861689,1749965448765,-460.0,0.00023287,4]
[365861690,1749965448775,-460.0,0.00023287,4]
[365861691,1749965448786,-630.61,0.00023287,4]
[365861692,1749965448795,-547.35,0.00023287,4]
[365861693,1749965448805,-460.0,0.00023287,4]
[365861694,1749965448814,-460.0,0.00023287,4]
[365861695,1749965448824,-3923.17,0.00023287,4]
[365861696,1749965448834,-460.0,0.00023287,4]
[365861697,1749965448844,-478.74,0.00023287,4]
[365861698,1749965448854,-660.76,0.00023287,4]
[365861699,1749965448864,-2793.04,0.00023287,4]
[365861700,1749965448874,-899.13,0.00023287,4]
[365861701,1749965448884,-700.57,0.00023287,4]
[365861702,1749965448894,-1994.39,0.00023287,4]
[365861703,1749965448903,-3483.91,0.00023287,4]
[365861704,1749965448913,-1205.3,0.00023287,4]
[365861705,1749965448923,-1481.15,0.00023287,4]
[365861706,1749965448932,-598.0,0.00023287,4]
[365861707,1749965448941,-1506.96,0.00023287,4]
[365861708,1749965448951,-460.0,0.00023287,4]
[365861709,1749965448961,-788.51,0.00023287,4]
[365861710,1749965448970,-460.0,0.00023287,4]
[365861711,1749965448981,-460.0,0.00023287,4]
[365861712,1749965448991,-460.0,0.00023287,4]
[365861713,1749965449001,-460.0,0.00023287,4]
[365861714,1749965449011,-460.0,0.00023287,4]
[365861715,1749965449020,-584.31,0.00023287,4]
[365861716,1749965449030,-460.0,0.00023287,4]
[365861717,1749965449040,-460.0,0.00023287,4]
[365861718,1749965449049,-474.67,0.00023287,4]
[365861719,1749965449059,-460.0,0.00023287,4]
[365861720,1749965449070,-481.67,0.00023287,4]
[365861721,1749965449079,-212.407922,0.00023287,7]
[365861722,1749965449089,-523.01,0.00023287,4]
[365861723,1749965449099,-478.75,0.00023287,4]
[365861724,1749965449108,-212.407922,0.00023287,7]
[365861725,1749965449118,-1041.44,0.00023287,4]
[365861726,1749965449128,-460.0,0.00023287,4]
[365861727,1749965449137,-460.0,0.00023287,4]
[365861728,1749965449147,-460.0,0.00023287,4]
[365861729,1749965449156,-460.0,0.00023287,4]
[365861730,1749965449166,-460.0,0.00023287,4]
[365861731,1749965449176,-1646.48,0.00023287,4]
[365861732,1749965449185,-710.68,0.00023287,4]
[365861733,1749965449194,-1919.93,0.00023287,4]
[365861734,1749965449204,-2386.94,0.00023287,4]
[365861735,1749965449214,-1492.07,0.00023287,4]
[365861736,1749965449223,-460.0,0.00023287,4]
[365861737,1749965449233,-460.0,0.00023287,4]
[365861738,1749965449242,-2543.19,0.00023287,4]
[365861739,1749965449251,-460.0,0.00023287,4]
[365861740,1749965449260,-620.25,0.00023287,4]
[365861741,1749965449270,-565.65,0.00023287,4]
[365861742,1749965449279,-460.0,0.00023287,4]
[365861743,1749965449288,-1706.09,0.00023287,4]
[365861744,1749965449299,-460.0,0.00023287,4]
[365861745,1749965449308,-379.67679989,0.000233,15]
[365861746,1749965449318,-2160.0,0.00023333,2]
[365861747,1749965449326,-653.0,0.00023333,2]
[365861748,1749965449336,-405.0,0.00023333,2]
[365861749,1749965449345,-406.0,0.00023333,2]
[365861750,1749965449355,-151.0,0.00023333,7]
[365861751,1749965449364,-151.0,0.00023333,7]
[365861752,1749965449373,-3036.60263499,0.00023359,2]
[365861753,1749965449382,-264.0,0.00023361,2]
[365861754,1749965449392,-500.0,0.00023375,2]
[365861755,1749965449401,-757.01,0.00023378,5]
[365861756,1749965449410,-500.0,0.00023384,2]
[365861757,1749965449419,-500.0,0.00023389,2]
[365861758,1749965449428,-338.0,0.0002339,2]
[365861759,1749965449438,-151.0,0.00023399,7]
[365861760,1749965449447,-37228.14727444,0.000234,2]
[365861761,1749965449457,-151.0,0.000234,7]
[365861762,1749965449465,-151.0,0.000234,7]
[365861763,1749965449474,-3000.0,0.000234,2]
[365861764,1749965449483,-151.0,0.000234,7]
[365861765,1749965449492,-151.0,0.000234,7]
[365861766,1749965449501,-151.0,0.000234,7]
[365861767,1749965449511,-151.0,0.000234,7]
[365861768,1749965449520,-151.0,0.000234,7]
[365861769,1749965449529,-158.200928,0.000234,7]
[365861770,1749965449537,-158.200928,0.000234,7]
[365861771,1749965449546,-151.0,0.000234,7]
[365861772,1749965449556,-4644.16247723,0.000234,2]
[365861773,1749965449566,-151.0,0.000234,7]
[365861774,1749965449577,-151.0,0.000234,7]
[365861775,1749965449586,-1002.392453,0.000234,2]
[365861776,1749965449595,-153.308803,0.000234,7]
[365861777,1749965449604,-153.308803,0.000234,7]
[365861778,1749965449613,-500.0,0.00023402,2]
[365861779,1749965449622,-3000.0,0.0002341,2]
[365861780,1749965449631,-1693.2998215,0.00023417,9]
[365861781,1749965449640,-3000.0,0.0002342,2]
[365861782,1749965449649,-156.233307,0.0002342,7]
[365861783,1749965449660,-151.0,0.0002342,7]
[365861784,1749965449669,-189.105303,0.0002342,7]
[365861785,1749965449678,-500.0,0.00023423,2]
[365861786,1749965449687,-3000.0,0.0002343,2]
[365861787,1749965449697,-500.0,0.00023435,2]
[365861788,1749965449706,-3000.0,0.0002344,2]
[365861789,1749965449715,-3000.0,0.0002345,2]
[365861790,1749965449724,-3000.0,0.0002346,2]
[365861791,1749965449733,-3000.0,0.0002347,2]
[365861792,1749965449742,-757.01,0.00023478,3]
[365861793,1749965449751,-3000.0,0.0002348,2]
[365861794,1749965449761,-151.0,0.0002348,7]
[365861795,1749965449770,-168.0,0.00023485,2]
[365861796,1749965449780,-151.0,0.00023489,7]
[365861797,1749965449790,-210.785039,0.00023489,7]
[365861798,1749965449800,-3000.0,0.0002349,2]
[365861799,1749965449809,-3000.0,0.000235,2]
[365861800,1749965449818,-639.0,0.000235,2]
[365861801,1749965449827,-424.47602138,0.000235,3]
[365861802,1749965449837,-151.0,0.000235,7]
[365861803,1749965449846,-845.25843836,0.000235,3]
[365861804,1749965449856,-3000.0,0.0002351,2]
[365861805,1749965449865,-194.06246095,0.00023513,2]
[365861806,1749965449874,-3000.0,0.0002352,2]
[365861807,1749965449884,-215.0738,0.0002352,2]
[365861808,1749965449893,-1000.0,0.00023521,2]
[365861809,1749965449902,-1000.0,0.00023521,2]
[365861810,1749965449911,-158.50228441,0.00023521,2]
[365861811,1749965449920,-1000.0,0.00023521,2]
[365861812,1749965449929,-501.8180993,0.00023521,2]
[365861813,1749965449938,-1002.3111618,0.00023521,2]
[365861814,1749965449947,-501.65890684,0.00023521,2]
[365861815,1749965449957,-1000.0,0.00023521,2]
[365861816,1749965449965,-501.13444693,0.00023521,2]
[365861817,1749965449975,-284.08277887,0.00023521,2]
[365861818,1749965449984,-1001.22979174,0.00023521,2]
[365861819,1749965449993,-501.1319147,0.00023521,2]
[365861820,1749965450004,-1000.0,0.00023521,2]
[365861821,1749965450013,-542.18707314,0.00023521,2]
[365861822,1749965450022,-1002.13599302,0.00023521,2]
[365861823,1749965450031,-1000.0,0.00023521,2]
[365861824,1749965450040,-1200.0,0.00023521,2]
[365861825,1749965450049,-1000.0,0.00023521,2]
[365861826,1749965450058,-1009.62589891,0.00023521,2]
[365861827,1749965450067,-1001.32312854,0.00023521,2]
[365861828,1749965450077,-1001.22424022,0.00023521,2]
[365861829,1749965450086,-3000.0,0.0002353,2]
[365861830,1749965450096,-151.0,0.0002353,7]
[365861831,1749965450105,-151.0,0.0002353,7]
[365861832,1749965450115,-186.724186,0.0002353,2]
[365861833,1749965450124,-151.0,0.0002353,7]
[365861834,1749965450133,-186.724186,0.0002353,2]
[365861835,1749965450142,-212.407922,0.0002353,7]
[365861836,1749965450151,-212.407922,0.0002353,7]
[365861837,1749965450161,-3000.0,0.0002354,2]
[365861838,1749965450169,-3474.7372,0.0002355,2]
[365861839,1749965450179,-500.0,0.00023551,2]
[365861840,1749965450189,-1693.2998215,0.00023555,9]
[365861841,1749965450198,-3819.55,0.0002356,4]
[365861842,1749965450207,-1587.03,0.0002356,4]
[365861843,1749965450216,-460.0,0.0002356,4]
[365861844,1749965450226,-153.308803,0.0002356,7]
[365861845,1749965450235,-153.308795,0.0002356,7]
[365861846,1749965450245,-251.533111,0.00023561,7]
[365861847,1749965450255,-251.533111,0.00023561,7]
[365861848,1749965450264,-151.0,0.00023561,7]
[365861849,1749965450273,-151.0,0.00023561,7]
[365861850,1749965450284,-151.0,0.00023561,7]
[365861851,1749965450293,-151.0,0.00023561,7]
[365861852,1749965450303,-158.200928,0.00023561,7]
[365861853,1749965450312,-158.200928,0.00023561,7]
[365861854,1749965450321,-151.0,0.00023561,7]
[365861855,1749965450331,-151.0,0.00023561,7]
[365861856,1749965450340,-280.946612,0.00023561,7]
[365861857,1749965450350,-391.84010597,0.00023561,4]
[365861858,1749965450360,-200.0,0.00023561,4]
[365861859,1749965450370,-200.0,0.00023561,4]
[365861860,1749965450379,-200.0,0.00023561,4]
[365861861,1749965450388,-200.0,0.00023561,4]
[365861862,1749965450505,-200.0,0.00023561,4]
[365861863,1749965450515,-200.0,0.00023561,4]
[365861864,1749965450525,-200.0,0.00023561,4]
[365861865,1749965450534,-460.0,0.00023561,4]
[365861866,1749965450544,-613.75,0.00023561,4]
[365861867,1749965450554,-582.87,0.00023561,4]
[365861868,1749965450565,-350.0,0.00023561,4]
[365861869,1749965450575,-826.12,0.00023561,4]
[365861870,1749965450585,-679.06,0.00023561,4]
[365861871,1749965450595,-460.0,0.00023561,2]
[365861872,1749965450604,-460.0,0.00023561,4]
[365861873,1749965450614,-460.0,0.00023561,4]
[365861874,1749965450623,-630.61,0.00023561,4]
[365861875,1749965450633,-547.35,0.00023561,4]